fUSD/lending_fUSD_20250807
["ID","MTS","AMOUNT","RATE_DAILY","PERIOD"]
[377839457,1754573148045,-665.56,0.00019966,2]
[377839458,1754573148187,-1700.67,0.00019966,2]
[377839459,1754573148212,-151.0,0.00019966,2]
[377839460,1754573148237,-400.0,0.00019966,2]
[377839461,1754573148264,-151.0,0.00019966,2]
[377839462,1754573148290,-400.0,0.00019966,2]
[377839463,1754573148313,-400.0,0.00019966,2]
[377839464,1754573148337,-615.55,0.00019966,2]
[377839465,1754573148362,-432.86,0.00019966,2]
[377839466,1754573148386,-1941.21,0.00019966,2]
[377839467,1754573148410,-1060.47,0.00019966,2]
[377839468,1754573148434,-400.0,0.00019966,2]
[377839469,1754573148458,-848.42,0.00019966,2]
[377839470,1754573148484,-1722.22,0.00019966,2]
[377839471,1754573148509,-400.0,0.00019966,2]
[377839472,1754573148533,-431.57,0.00019966,2]
[377839473,1754573148557,-151.0,0.00019966,2]
[377839474,1754573148581,-400.0,0.00019966,2]
[377839475,1754573148606,-947.72,0.00019966,2]
[377839476,1754573148630,-919.47,0.00019966,2]
[377839477,1754573148653,-400.0,0.00019966,2]
[377839478,1754573148678,-400.0,0.00019966,2]
[377839479,1754573148702,-400.0,0.00019966,2]
[377839480,1754573148725,-708.21,0.00019966,2]
[377839481,1754573148748,-187.628555,0.00019966,2]
[377839482,1754573148772,-1175.21,0.00019966,2]
[377839483,1754573148796,-1869.59,0.00019966,2]
[377839484,1754573148821,-1513.19,0.00019966,2]
[377839485,1754573148845,-400.0,0.00019966,2]
[377839486,1754573148867,-239.51591919,0.00019966,2]
[377839487,1754573148891,-400.0,0.00019966,2]
[377839488,1754573148913,-400.0,0.00019966,2]
[377839489,1754573148937,-400.0,0.00019966,2]
[377839490,1754573148960,-400.0,0.00019966,2]
[377839491,1754573148984,-152.947002,0.00019966,2]
[377839492,1754573149008,-700.23,0.00019966,2]
[377839493,1754573149031,-592.88,0.00019966,2]
[377839494,1754573149056,-400.0,0.00019966,2]
[377839495,1754573149081,-1598.06,0.00019966,2]
[377839496,1754573149105,-1126.74,0.00019966,2]
[377839497,1754573149130,-1029.12,0.00019966,2]
[377839498,1754573149154,-704.65,0.00019966,2]
[377839499,1754573149177,-400.0,0.00019966,2]
[377839500,1754573149201,-1465.15,0.00019966,2]
[377839501,1754573149227,-939.56,0.00019966,2]
[377839502,1754573149250,-685.33,0.00019966,2]
[377839503,1754573149274,-2343.25,0.00019966,2]
[377839504,1754573149297,-480.61,0.00019966,2]
[377839505,1754573149321,-478.66,0.00019966,2]
[377839506,1754573149344,-418.89,0.00019966,2]
[377839507,1754573149367,-1494.95,0.00019966,2]
[377839508,1754573149393,-2466.48,0.00019966,2]
[377839509,1754573149416,-474.8,0.00019966,2]
[377839510,1754573149440,-2630.87,0.00019966,2]
[377839511,1754573149464,-684.59,0.00019966,2]
[377839512,1754573149490,-485.68,0.00019966,2]
[377839513,1754573149514,-477.13,0.00019966,2]
[377839514,1754573149537,-829.53,0.00019966,2]
[377839515,1754573149561,-435.38,0.00019966,2]
[377839516,1754573149584,-400.0,0.00019966,2]
[377839517,1754573149607,-3259.91,0.00019966,2]
[377839518,1754573149630,-400.0,0.00019966,2]
[377839519,1754573149739,-529.47,0.00019966,2]
[377839520,1754573149762,-821.38,0.00019966,2]
[377839521,1754573149784,-631.64,0.00019966,2]
[377839522,1754573149807,-401.17,0.00019966,2]
[377839523,1754573149829,-400.0,0.00019966,2]
[377839524,1754573149851,-400.0,0.00019966,2]
[377839525,1754573149874,-1834.97,0.00019966,2]
[377839526,1754573149897,-1340.09,0.00019966,2]
[377839527,1754573149919,-975.89,0.00019966,2]
[377839528,1754573149941,-454.23,0.00019966,2]
[377839529,1754573149963,-1407.67,0.00019966,2]
[377839530,1754573149985,-1055.07,0.00019966,2]
[377839531,1754573150007,-400.0,0.00019966,2]
[377839532,1754573150028,-400.0,0.00019966,2]
[377839533,1754573150049,-400.0,0.00019966,2]
[377839534,1754573150071,-400.0,0.00019966,2]
[377839535,1754573150093,-539.68,0.00019966,2]
[377839536,1754573150115,-1686.54,0.00019966,2]
[377839537,1754573150137,-881.05,0.00019966,2]
[377839538,1754573150160,-151.0,0.00019966,2]
[377839539,1754573150182,-151.0,0.00019966,2]
[377839540,1754573150204,-151.0,0.00019966,2]
[377839541,1754573150229,-151.0,0.00019966,2]
[377839542,1754573150251,-1471.55,0.00019966,2]
[377839543,1754573150273,-409.45,0.00019966,2]
[377839544,1754573150294,-542.08,0.00019966,2]
[377839545,1754573150317,-763.76,0.00019966,2]
[377839546,1754573150339,-1248.76,0.00019966,2]
[377839547,1754573150361,-1749.21,0.00019966,2]
[377839548,1754573150383,-2909.38,0.00019966,2]
[377839549,1754573150406,-500.0,0.00019966,2]
[377839550,1754573150428,-422.94,0.00019966,2]
[377839551,1754573150449,-463.92,0.00019966,2]
[377839552,1754573150471,-634.22,0.00019966,2]
[377839553,1754573150494,-400.0,0.00019966,2]
[377839554,1754573150516,-641.96,0.00019966,2]
[377839555,1754573150539,-1391.74,0.00019966,2]
[377839556,1754573150561,-400.0,0.00019966,2]
[377839557,1754573150584,-1037.24,0.00019966,2]
[377839558,1754573150607,-4153.69,0.00019966,2]
[377839559,1754573150629,-2162.14,0.00019966,2]
[377839560,1754573150653,-400.0,0.00019966,2]
[377839561,1754573150676,-826.11,0.00019966,2]
[377839562,1754573150700,-233.159012,0.00019966,2]
[377839563,1754573150723,-1297.78,0.00019966,2]
[377839564,1754573150747,-400.0,0.00019966,2]
[377839565,1754573150771,-400.0,0.00019966,2]
[377839566,1754573150794,-1056.09,0.00019966,2]
[377839567,1754573150816,-400.0,0.00019966,2]
[377839568,1754573150840,-152.711212,0.00019966,2]
[377839569,1754573150863,-400.0,0.00019966,2]
[377839570,1754573150886,-1235.53,0.00019966,2]
[377839571,1754573150910,-967.89,0.00019966,2]
[377839572,1754573150934,-823.11,0.00019966,2]
[377839573,1754573150956,-1389.09,0.00019966,2]
[377839574,1754573150977,-2031.46,0.00019966,2]
[377839575,1754573151001,-1060.97,0.00019966,2]
[377839576,1754573151023,-1517.77,0.00019966,2]
[377839577,1754573151046,-1650.12,0.00019966,2]
[377839578,1754573151067,-827.81,0.00019966,2]
[377839579,1754573151089,-874.17,0.00019966,2]
[377839580,1754573151112,-2081.99,0.00019966,2]
[377839581,1754573151134,-1595.36,0.00019966,2]
[377839582,1754573151159,-616.3,0.00019966,2]
[377839583,1754573151181,-447.14,0.00019966,2]
[377839584,1754573151203,-2320.29,0.00019966,2]
[377839585,1754573151231,-563.51,0.00019966,2]
[377839586,1754573151254,-1294.02,0.00019966,2]
[377839587,1754573151279,-1871.97,0.00019966,2]
[377839588,1754573151303,-1052.84,0.00019966,2]
[377839589,1754573151328,-588.95,0.00019966,2]
[377839590,1754573151351,-150.866752,0.00019966,2]
[377839591,1754573151374,-151.0,0.00019966,2]
[377839592,1754573151399,-151.0,0.00019966,2]
[377839593,1754573151421,-1237.17,0.00019966,2]
[377839594,1754573151444,-1356.44,0.00019966,2]
[377839595,1754573151467,-400.0,0.00019966,2]
[377839596,1754573151492,-572.04,0.00019966,2]
[377839597,1754573151517,-965.76,0.00019966,2]
[377839598,1754573151539,-532.42,0.00019966,2]
[377839599,1754573151562,-799.01,0.00019966,2]
[377839600,1754573151585,-400.0,0.00019966,2]
[377839601,1754573151816,-195.102829,0.00019966,2]
[377839602,1754573151839,-195.102829,0.00019966,2]
[377839603,1754573151863,-150.613148,0.00019966,2]
[377839604,1754573151887,-195.102829,0.00019966,2]
[377839605,1754573151911,-400.0,0.00019966,2]
[377839606,1754573151935,-1106.85,0.00019966,2]
[377839607,1754573151959,-195.102829,0.00019966,2]
[377839608,1754573151982,-195.102829,0.00019966,2]
[377839609,1754573152006,-400.0,0.00019966,2]
[377839610,1754573152031,-195.102829,0.00019966,2]
[377839611,1754573152053,-886.25,0.00019966,2]
[377839612,1754573152075,-1054.82,0.00019966,2]
[377839613,1754573152099,-1468.25,0.00019966,2]
[377839614,1754573152123,-400.0,0.00019966,2]
[377839615,1754573152146,-1572.37,0.00019966,2]
[377839616,1754573152177,-159.298132,0.00019966,2]
[377839617,1754573152211,-400.0,0.00019966,2]
[377839618,1754573152237,-1171.44,0.00019966,2]
[377839619,1754573152259,-400.0,0.00019966,2]
[377839620,1754573152282,-1212.41,0.00019966,2]
[377839621,1754573152305,-493.07,0.00019966,2]
[377839622,1754573152328,-165.377746,0.00019966,2]
[377839623,1754573152350,-2006.02,0.00019966,2]
[377839624,1754573152372,-400.0,0.00019966,2]
[377839625,1754573152396,-767.77,0.00019966,2]
[377839626,1754573152420,-190.516576,0.00019966,2]
[377839627,1754573152443,-151.0,0.00019966,2]
[377839628,1754573152466,-510.94956485,0.00019966,2]
[377839629,1754573152491,-151.0,0.00019966,2]
[377839630,1754573152515,-1971.08,0.00019966,2]
[377839631,1754573152538,-3262.68,0.00019966,2]
[377839632,1754573152562,-694.4,0.00019966,2]
[377839633,1754573152585,-460.38,0.00019966,2]
[377839634,1754573152608,-3759.52,0.00019966,2]
[377839635,1754573152630,-400.0,0.00019966,2]
[377839636,1754573152653,-400.0,0.00019966,2]
[377839637,1754573152677,-2492.73,0.00019966,2]
[377839638,1754573152701,-400.0,0.00019966,2]
[377839639,1754573152726,-400.0,0.00019966,2]
[377839640,1754573152749,-1896.14,0.00019966,2]
[377839641,1754573152771,-400.0,0.00019966,2]
[377839642,1754573152794,-400.0,0.00019966,2]
[377839643,1754573152816,-799.42,0.00019966,2]
[377839644,1754573152838,-402.45,0.00019966,2]
[377839645,1754573152861,-1540.1,0.00019966,2]
[377839646,1754573152884,-400.0,0.00019966,2]
[377839647,1754573152910,-1540.1,0.00019966,2]
[377839648,1754573152934,-2037.77,0.00019966,2]
[377839649,1754573152958,-400.0,0.00019966,2]
[377839650,1754573152982,-1624.52,0.00019966,2]
[377839651,1754573153004,-400.0,0.00019966,2]
[377839652,1754573153029,-750.03,0.00019966,2]
[377839653,1754573153054,-400.0,0.00019966,2]
[377839654,1754573153079,-2464.7,0.00019966,2]
[377839655,1754573153102,-400.0,0.00019966,2]
[377839656,1754573153125,-400.0,0.00019966,2]
[377839657,1754573153147,-1035.66,0.00019966,2]
[377839658,1754573153170,-2807.6,0.00019966,2]
[377839659,1754573153192,-400.0,0.00019966,2]
[377839660,1754573153214,-1682.9,0.00019966,2]
[377839661,1754573153240,-414.17,0.00019966,2]
[377839662,1754573153263,-1441.53,0.00019966,2]
[377839663,1754573153286,-400.0,0.00019966,2]
[377839664,1754573153309,-3167.92,0.00019966,2]
[377839665,1754573153330,-629.69,0.00019966,2]
[377839666,1754573153352,-400.0,0.00019966,2]
[377839667,1754573153375,-627.2,0.00019966,2]
[377839668,1754573153399,-462.55,0.00019966,2]
[377839669,1754573153421,-500.0,0.00019966,2]
[377839670,1754573153444,-400.0,0.00019966,2]
[377839671,1754573153466,-2212.26,0.00019966,2]
[377839672,1754573153491,-2374.72,0.00019966,2]
[377839673,1754573153514,-609.99,0.00019966,2]
[377839674,1754573153536,-400.0,0.00019966,2]
[377839675,1754573153559,-1542.53,0.00019966,2]
[377839676,1754573153581,-887.55,0.00019966,2]
[377839677,1754573153603,-826.23,0.00019966,2]
[377839678,1754573153626,-485.41,0.00019966,2]
[377839679,1754573153652,-511.59,0.00019966,2]
[377839680,1754573153675,-1234.75,0.00019966,2]
[377839681,1754573153698,-1108.9,0.00019966,2]
[377839682,1754573153721,-224.130492,0.00019966,2]
[377839683,1754573153744,-153.152421,0.00019966,2]
[377839684,1754573153766,-473.68,0.00019966,2]
[377839685,1754573153789,-1112.91,0.00019966,2]
[377839686,1754573153811,-1885.39,0.00019966,2]
[377839687,1754573153834,-400.0,0.00019966,2]
[377839688,1754573153858,-1714.45,0.00019966,2]
[377839689,1754573153881,-155.659764,0.00019966,2]
[377839690,1754573153905,-400.0,0.00019966,2]
[377839691,1754573153927,-2828.75,0.00019966,2]
[377839692,1754573153949,-400.0,0.00019966,2]
[377839693,1754573153971,-1941.45,0.00019966,2]
[377839694,1754573153994,-520.06166351,0.00019966,2]
[377839695,1754573154019,-2443.16,0.00019966,2]
[377839696,1754573154042,-400.0,0.00019966,2]
[377839697,1754573154065,-400.0,0.00019966,2]
[377839698,1754573154088,-1382.16,0.00019966,2]
[377839699,1754573154112,-1642.45,0.00019966,2]
[377839700,1754573154136,-400.0,0.00019966,2]
[377839701,1754573154298,-1051.14,0.00019966,2]
[377839702,1754573154323,-400.0,0.00019966,2]
[377839703,1754573154346,-400.0,0.00019966,2]
[377839704,1754573154370,-2636.66,0.00019966,2]
[377839705,1754573154398,-151.0,0.00019966,2]
[377839706,1754573154424,-151.0,0.00019966,2]
[377839707,1754573154447,-2324.92,0.00019966,2]
[377839708,1754573154474,-151.0,0.00019966,2]
[377839709,1754573154499,-400.0,0.00019966,2]
[377839710,1754573154522,-400.0,0.00019966,2]
[377839711,1754573154545,-435.98,0.00019966,2]
[377839712,1754573154568,-2779.61,0.00019966,2]
[377839713,1754573154591,-151.0,0.00019966,2]
[377839714,1754573154614,-2308.5,0.00019966,2]
[377839715,1754573154636,-1026.68,0.00019966,2]
[377839716,1754573154661,-2244.73,0.00019966,2]
[377839717,1754573154683,-2029.04,0.00019966,2]
[377839718,1754573154708,-435.16,0.00019966,2]
[377839719,1754573154732,-554.62,0.00019966,2]
[377839720,1754573154755,-1518.46,0.00019966,2]
[377839721,1754573154778,-151.0,0.00019966,2]
[377839722,1754573154801,-151.0,0.00019966,2]
[377839723,1754573154825,-151.0,0.00019966,2]
[377839724,1754573154848,-151.0,0.00019966,2]
[377839725,1754573154872,-151.0,0.00019966,2]
[377839726,1754573154898,-468.15,0.00019966,2]
[377839727,1754573154922,-1194.18,0.00019966,2]
[377839728,1754573154946,-151.0,0.00019966,2]
[377839729,1754573154970,-151.0,0.00019966,2]
[377839730,1754573154994,-952.56,0.00019966,2]
[377839731,1754573155022,-854.34,0.00019966,2]
[377839732,1754573155046,-400.0,0.00019966,2]
[377839733,1754573155075,-401.07598503,0.00019966,2]
[377839734,1754573155099,-400.0,0.00019966,2]
[377839735,1754573155124,-151.0,0.00019966,2]
[377839736,1754573155153,-1784.05,0.00019966,2]
[377839737,1754573155178,-151.0,0.00019966,2]
[377839738,1754573155203,-151.0,0.00019966,2]
[377839739,1754573155230,-151.0,0.00019967,2]
[377839740,1754573155254,-151.0,0.00019967,2]
[377839741,1754573155280,-153.777731,0.00019967,2]
[377839742,1754573155306,-151.0,0.00019967,2]
[377839743,1754573155330,-151.0,0.00019967,2]
[377839744,1754573155354,-156.752019,0.00019967,2]
[377839745,1754573155377,-530.0,0.00019967,2]
[377839746,1754573155403,-151.0,0.00019967,2]
[377839747,1754573155427,-151.0,0.00019967,2]
[377839748,1754573155452,-400.0,0.00019967,2]
[377839749,1754573155479,-400.0,0.00019967,2]
[377839750,1754573155503,-400.0,0.00019967,2]
[377839751,1754573155529,-400.0,0.00019967,2]
[377839752,1754573155557,-400.0,0.00019967,2]
[377839753,1754573155583,-160.927966,0.00019967,2]
[377839754,1754573155610,-401.96422503,0.00019967,2]
[377839755,1754573155639,-400.0,0.00019967,2]
[377839756,1754573155663,-400.87332951,0.00019967,2]
[377839757,1754573155687,-400.0,0.00019967,2]
[377839758,1754573155711,-400.0,0.00019967,2]
[377839759,1754573155735,-400.0,0.00019967,2]
[377839760,1754573155759,-400.0,0.00019967,2]
[377839761,1754573155783,-500.0,0.00019967,2]
[377839762,1754573155806,-400.0,0.00019967,2]
[377839763,1754573155830,-151.0,0.00019967,2]
[377839764,1754573155855,-151.0,0.00019967,2]
[377839765,1754573155879,-151.0,0.00019967,2]
[377839766,1754573155903,-400.0,0.00019967,2]
[377839767,1754573155927,-151.0,0.00019967,2]
[377839768,1754573155952,-151.0,0.00019967,2]
[377839769,1754573155977,-151.0,0.00019967,2]
[377839770,1754573156002,-839.81,0.00019967,2]
[377839771,1754573156026,-153.76049516,0.00019967,2]
[377839772,1754573156052,-400.0,0.00019967,2]
[377839773,1754573156079,-749.88,0.00019967,2]
[377839774,1754573156103,-725.15,0.00019967,2]
[377839775,1754573156126,-400.0,0.00019967,2]
[377839776,1754573156150,-500.0,0.00019967,2]
[377839777,1754573156177,-400.0,0.00019967,2]
[377839778,1754573156200,-400.0,0.00019967,2]
[377839779,1754573156228,-400.0,0.00019967,2]
[377839780,1754573156251,-400.0,0.00019967,2]
[377839781,1754573156275,-747.48,0.00019967,2]
[377839782,1754573156299,-400.0,0.00019967,2]
[377839783,1754573156323,-400.0,0.00019967,2]
[377839784,1754573156346,-400.0,0.00019967,2]
[377839785,1754573156369,-400.0,0.00019967,2]
[377839786,1754573156395,-756.15,0.00019967,2]
[377839787,1754573156419,-151.0,0.00019967,2]
[377839788,1754573156443,-400.0,0.00019967,2]
[377839789,1754573156466,-151.0,0.00019967,2]
[377839790,1754573156491,-400.0,0.00019967,2]
[377839791,1754573156515,-151.0,0.00019967,2]
[377839792,1754573156538,-625.93,0.00019967,2]
[377839793,1754573156561,-400.0,0.00019967,2]
[377839794,1754573156585,-1608.82,0.00019967,2]
[377839795,1754573156610,-1697.06,0.00019967,2]
[377839796,1754573156634,-400.0,0.00019967,2]
[377839797,1754573156657,-679.8,0.00019967,2]
[377839798,1754573156680,-615.03,0.00019967,2]
[377839799,1754573156702,-400.0,0.00019967,2]
[377839800,1754573156725,-400.0,0.00019967,2]
[377839801,1754573156751,-1315.61,0.00019967,2]
[377839802,1754573156772,-1600.35,0.00019967,2]
[377839803,1754573156794,-400.0,0.00019967,2]
[377839804,1754573156817,-535.41,0.00019967,2]
[377839805,1754573156841,-400.0,0.00019967,2]
[377839806,1754573156880,-400.0,0.00019967,2]
[377839807,1754573156906,-400.0,0.00019967,2]
[377839808,1754573156932,-151.0,0.00019967,2]
[377839809,1754573156956,-400.0,0.00019967,2]
[377839810,1754573156980,-400.0,0.00019967,2]
[377839811,1754573157005,-339.69841949,0.00019967,2]
[377839812,1754573157029,-481.97,0.00019967,2]
[377839813,1754573157060,-484.69,0.00019967,2]
[377839814,1754573157633,-400.0,0.00019967,2]
[377839815,1754573157659,-400.0,0.00019967,2]
[377839816,1754573157683,-237.88013167,0.00019967,2]
[377839817,1754573157707,-646.04,0.00019967,2]
[377839818,1754573157730,-400.0,0.00019967,2]
[377839819,1754573157755,-1693.52,0.00019967,2]
[377839820,1754573157779,-400.0,0.00019967,2]
[377839821,1754573157804,-400.0,0.00019967,2]
[377839822,1754573157827,-887.83,0.00019967,2]
[377839823,1754573157851,-400.0,0.00019967,2]
[377839824,1754573157875,-400.0,0.00019967,2]
[377839825,1754573157900,-151.0,0.00019967,2]
[377839826,1754573157929,-2098.55,0.00019967,2]
[377839827,1754573157953,-400.0,0.00019967,2]
[377839828,1754573157979,-400.0,0.00019967,2]
[377839829,1754573158004,-401.70039882,0.00019967,2]
[377839830,1754573158029,-487.79,0.00019967,2]
[377839831,1754573158053,-400.0,0.00019967,2]
[377839832,1754573158077,-400.0,0.00019967,2]
[377839833,1754573158101,-597.9,0.00019967,2]
[377839834,1754573158125,-400.0,0.00019967,2]
[377839835,1754573158149,-1910.49,0.00019967,2]
[377839836,1754573158178,-151.0,0.00019967,2]
[377839837,1754573158203,-1477.95,0.00019967,2]
[377839838,1754573158229,-151.0,0.00019967,2]
[377839839,1754573158254,-253.662966,0.00019967,2]
[377839840,1754573158279,-496.23,0.00019967,2]
[377839841,1754573158305,-400.0,0.00019967,2]
[377839842,1754573158332,-400.0,0.00019967,2]
[377839843,1754573158357,-795.48,0.00019967,2]
[377839844,1754573158382,-400.0,0.00019967,2]
[377839845,1754573158407,-400.0,0.00019967,2]
[377839846,1754573158432,-400.0,0.00019967,2]
[377839847,1754573158458,-500.0,0.00019967,2]
[377839848,1754573158486,-400.0,0.00019967,2]
[377839849,1754573158511,-400.0,0.00019967,2]
[377839850,1754573158535,-400.0,0.00019967,2]
[377839851,1754573158559,-409.79826,0.00019967,2]
[377839852,1754573158583,-409.79826,0.00019967,2]
[377839853,1754573158607,-589.97,0.00019967,2]
[377839854,1754573158631,-400.0,0.00019967,2]
[377839855,1754573158657,-400.0,0.00019967,2]
[377839856,1754573158680,-409.79826,0.00019967,2]
[377839857,1754573158704,-409.79826,0.00019967,2]
[377839858,1754573158728,-759.28,0.00019967,2]
[377839859,1754573158751,-400.0,0.00019967,2]
[377839860,1754573158775,-400.0,0.00019967,2]
[377839861,1754573158799,-1173.76,0.00019967,2]
[377839862,1754573158823,-400.0,0.00019967,2]
[377839863,1754573158846,-971.64,0.00019967,2]
[377839864,1754573158870,-500.0,0.00019967,2]
[377839865,1754573158895,-154.200704,0.00019967,2]
[377839866,1754573158918,-400.0,0.00019967,2]
[377839867,1754573158943,-400.0,0.00019967,2]
[377839868,1754573158967,-400.0,0.00019967,2]
[377839869,1754573158991,-401.75926625,0.00019967,2]
[377839870,1754573159014,-150.25686961,0.00019967,2]
[377839871,1754573159038,-151.0,0.00019967,2]
[377839872,1754573159062,-654.89,0.00019967,2]
[377839873,1754573159086,-400.0,0.00019967,2]
[377839874,1754573159110,-400.0,0.00019967,2]
[377839875,1754573159134,-370.37314087,0.00019967,2]
[377839876,1754573159158,-400.0,0.00019967,2]
[377839877,1754573159182,-400.0,0.00019967,2]
[377839878,1754573159205,-400.0,0.00019967,2]
[377839879,1754573159231,-400.0,0.00019967,2]
[377839880,1754573159256,-400.0,0.00019967,2]
[377839881,1754573159285,-400.0,0.00019967,2]
[377839882,1754573159313,-151.0,0.00019967,2]
[377839883,1754573159337,-151.0,0.00019967,2]
[377839884,1754573159362,-400.0,0.00019967,2]
[377839885,1754573159387,-867.71,0.00019967,2]
[377839886,1754573159411,-564.12,0.00019967,2]
[377839887,1754573159435,-400.0,0.00019967,2]
[377839888,1754573159459,-400.0,0.00019967,2]
[377839889,1754573159486,-151.0,0.00019967,2]
[377839890,1754573159513,-400.0,0.00019967,2]
[377839891,1754573159538,-1352.44,0.00019967,2]
[377839892,1754573159562,-400.0,0.00019967,2]
[377839893,1754573159587,-151.0,0.00019967,2]
[377839894,1754573159611,-151.0,0.00019967,2]
[377839895,1754573159635,-151.0,0.00019967,2]
[377839896,1754573159661,-185.137367,0.00019967,2]
[377839897,1754573159684,-400.0,0.00019967,2]
[377839898,1754573159707,-400.0,0.00019967,2]
[377839899,1754573159731,-595.3,0.00019967,2]
[377839900,1754573159757,-805.09,0.00019967,2]
[377839901,1754573159782,-361.32667166,0.00019967,2]
[377839902,1754573159806,-400.0,0.00019967,2]
[377839903,1754573159831,-400.0,0.00019967,2]
[377839904,1754573159856,-635.32,0.00019967,2]
[377839905,1754573159880,-400.0,0.00019967,2]
[377839906,1754573159905,-200.0,0.00019967,2]
[377839907,1754573159928,-400.0,0.00019967,2]
[377839908,1754573159953,-1614.55,0.00019967,2]
[377839909,1754573159977,-500.0,0.00019967,2]
[377839910,1754573160001,-1535.39,0.00019967,2]
[377839911,1754573160026,-400.0,0.00019967,2]
[377839912,1754573160049,-400.0,0.00019967,2]
[377839913,1754573160073,-1108.7,0.00019967,2]
[377839914,1754573160096,-400.0,0.00019967,7]
[377839915,1754573160120,-400.0,0.00019967,2]
[377839916,1754573160147,-500.0,0.00019967,2]
[377839917,1754573160172,-1963.14,0.00019967,2]
[377839918,1754573160198,-400.0,0.00019967,2]
[377839919,1754573160225,-447.54097483,0.00019967,2]
[377839920,1754573160253,-400.0,0.00019967,2]
[377839921,1754573160279,-400.0,0.00019967,2]
[377839922,1754573160306,-487.43,0.00019967,2]
[377839923,1754573160332,-400.0,0.00019967,2]
[377839924,1754573160357,-151.0,0.00019967,2]
[377839925,1754573160551,-400.0,0.00019967,2]
[377839926,1754573160577,-151.0,0.00019967,2]
[377839927,1754573160602,-400.0,0.00019967,2]
[377839928,1754573160626,-348.11297526,0.00019967,2]
[377839929,1754573160654,-400.0,0.00019967,2]
[377839930,1754573160677,-400.0,0.00019967,2]
[377839931,1754573160702,-400.0,0.00019967,2]
[377839932,1754573160726,-1330.33,0.00019967,2]
[377839933,1754573160750,-2313.8,0.00019967,2]
[377839934,1754573160775,-400.0,0.00019967,2]
[377839935,1754573160800,-400.0,0.00019967,2]
[377839936,1754573160824,-400.0,0.00019967,2]
[377839937,1754573160849,-400.0,0.00019967,2]
[377839938,1754573160873,-1194.96,0.00019967,2]
[377839939,1754573160898,-400.0,0.00019967,2]
[377839940,1754573160921,-400.0,0.00019967,2]
[377839941,1754573160945,-400.0,0.00019967,2]
[377839942,1754573160970,-400.0,0.00019967,2]
[377839943,1754573161000,-813.64,0.00019967,2]
[377839944,1754573161026,-500.0,0.00019967,2]
[377839945,1754573161051,-400.0,0.00019967,2]
[377839946,1754573161076,-789.45,0.00019967,2]
[377839947,1754573161101,-400.0,0.00019967,2]
[377839948,1754573161125,-400.0,0.00019967,2]
[377839949,1754573161150,-2177.24,0.00019967,2]
[377839950,1754573161174,-400.0,0.00019967,2]
[377839951,1754573161199,-400.0,0.00019967,2]
[377839952,1754573161225,-400.0,0.00019967,2]
[377839953,1754573161251,-1160.11549445,0.00019967,2]
[377839954,1754573169727,1690077.11303359,0.00030137,120]
[377839955,1754573183989,452.85,0.00015068,2]
[377839956,1754573184047,452.85,0.00016716,2]